fUSD/lending_fUSD_20240708
["ID","MTS","AMOUNT","RATE_DAILY","PERIOD"]
[331512498,1720445103319,-500.0,0.00053972,120]
[331512499,1720445103416,-1045.8,0.00053972,120]
[331512500,1720445103513,-2785.91,0.00053972,120]
[331512501,1720445103609,-3346.99,0.00053972,120]
[331512502,1720445103710,-613.69,0.00053972,120]
[331512503,1720445103805,-414.83968298,0.00053972,120]
[331512504,1720445103896,-2884.68,0.00053972,120]
[331512505,1720445103992,-1223.29,0.00053972,120]
[331512506,1720445104088,-521.67,0.00053972,120]
[331512507,1720445104181,-1430.22,0.00053972,120]
[331512508,1720445104280,-611.61,0.00053972,120]
[331512509,1720445104375,-1451.36,0.00053972,120]
[331512510,1720445104471,-729.84,0.00053972,120]
[331512511,1720445104570,-919.43,0.00053972,120]
[331512512,1720445104669,-1252.38,0.00053972,120]
[331512513,1720445104763,-902.66,0.00053972,120]
[331512514,1720445104856,-1130.53,0.00053972,120]
[331512515,1720445104952,-1710.79,0.00053972,120]
[331512516,1720445105046,-1387.34,0.00053972,120]
[331512517,1720445105136,-558.45,0.00053972,120]
[331512518,1720445105229,-595.41,0.00053972,120]
[331512519,1720445105322,-801.29,0.00053972,120]
[331512520,1720445105419,-681.95,0.00053972,120]
[331512521,1720445105516,-647.19,0.00053972,120]
[331512522,1720445105612,-500.0,0.00053972,120]
[331512523,1720445105888,-500.0,0.00053972,120]
[331512524,1720445105985,-920.91,0.00053972,120]
[331512525,1720445106079,-809.57,0.00053972,120]
[331512526,1720445106171,-866.07,0.00053972,120]
[331512527,1720445106267,-508.51,0.00053972,120]
[331512528,1720445106365,-1342.46,0.00053972,120]
[331512529,1720445106473,-500.0,0.00053972,120]
[331512530,1720445106577,-669.08,0.00053972,120]
[331512531,1720445106680,-924.87,0.00053972,120]
[331512532,1720445106788,-500.0,0.00053972,120]
[331512533,1720445106886,-1526.59,0.00053972,120]
[331512534,1720445106984,-2651.63,0.00053972,120]
[331512535,1720445107081,-500.0,0.00053972,120]
[331512536,1720445107173,-2744.63,0.00053972,120]
[331512537,1720445107266,-2267.0,0.00053972,120]
[331512538,1720445107358,-574.0,0.00053972,120]
[331512539,1720445107449,-775.01,0.00053972,120]
[331512540,1720445107541,-609.04697987,0.00053972,120]
[331512541,1720445107638,-1695.04,0.00053972,120]
[331512542,1720445107733,-500.0,0.00053972,120]
[331512543,1720445107826,-1245.56,0.00053972,120]
[331512544,1720445107918,-785.15,0.00053972,120]
[331512545,1720445108011,-1245.98,0.00053972,120]
[331512546,1720445108107,-1155.34,0.00053972,120]
[331512547,1720445108208,-226.32392167,0.00053972,120]
[331512548,1720445108307,-597.24156877,0.00053972,120]
[331512549,1720445108405,-555.03,0.00053972,120]
[331512550,1720445108499,-803.39,0.00053972,120]
[331512551,1720445108591,-1305.54,0.00053972,120]
[331512552,1720445108683,-949.65,0.00053972,120]
[331512553,1720445108779,-500.0,0.00053972,120]
[331512554,1720445108879,-500.0,0.00053972,120]
[331512555,1720445108979,-1347.23,0.00053972,120]
[331512556,1720445109078,-568.39,0.00053972,120]
[331512557,1720445109175,-500.0,0.00053972,120]
[331512558,1720445109274,-784.35,0.00053972,120]
[331512559,1720445109384,-796.74,0.00053972,120]
[331512560,1720445109484,-838.64,0.00053972,120]
[331512561,1720445109586,-500.0,0.00053972,120]
[331512562,1720445109686,-739.18,0.00053972,120]
[331512563,1720445109783,-995.21,0.00053972,120]
[331512564,1720445109881,-1155.36,0.00053972,120]
[331512565,1720445109982,-751.81,0.00053972,120]
[331512566,1720445110077,-1142.72,0.00053972,120]
[331512567,1720445110172,-2126.32,0.00053972,120]
[331512568,1720445110268,-1163.78,0.00053972,120]
[331512569,1720445110362,-743.53,0.00053972,120]
[331512570,1720445110459,-934.66,0.00053972,120]
[331512571,1720445110554,-995.22,0.00053972,120]
[331512572,1720445110649,-784.36,0.00053972,120]
[331512573,1720445110741,-1579.18,0.00053972,120]
[331512574,1720445110835,-500.0,0.00053972,120]
[331512575,1720445110930,-1658.26,0.00053972,120]
[331512576,1720445111022,-500.0,0.00053972,120]
[331512577,1720445111113,-580.63,0.00053972,120]
[331512578,1720445111209,-693.77,0.00053972,120]
[331512579,1720445111310,-633.12,0.00053972,120]
[331512580,1720445111405,-1079.99,0.00053972,120]
[331512581,1720445111501,-510.79,0.00053972,120]
[331512582,1720445111599,-500.0,0.00053972,120]
[331512583,1720445111694,-534.95,0.00053972,120]
[331512584,1720445111790,-652.14,0.00053972,120]
[331512585,1720445111887,-2055.98,0.00053972,120]
[331512586,1720445111980,-808.16,0.00053972,120]
[331512587,1720445112069,-837.72,0.00053972,120]
[331512588,1720445112157,-974.55,0.00053972,120]
[331512589,1720445112244,-500.0,0.00053972,120]
[331512590,1720445112334,-668.71,0.00053972,120]
[331512591,1720445112421,-918.92,0.00053972,120]
[331512592,1720445112509,-733.46,0.00053972,120]
[331512593,1720445112598,-500.0,0.00053972,120]
[331512594,1720445112690,-843.38,0.00053972,120]
[331512595,1720445112778,-777.5,0.00053972,120]
[331512596,1720445112865,-500.0,0.00053972,120]
[331512597,1720445112956,-852.37,0.00053972,120]
[331512598,1720445113044,-1186.97,0.00053972,120]
[331512599,1720445113142,-1241.83,0.00053972,120]
[331512600,1720445113240,-807.64,0.00053972,120]
[331512601,1720445113336,-803.38,0.00053972,120]
[331512602,1720445113444,-657.3,0.00053972,120]
[331512603,1720445113538,-1355.78,0.00053972,120]
[331512604,1720445113631,-500.0,0.00053972,120]
[331512605,1720445113728,-500.0,0.00053972,120]
[331512606,1720445113821,-500.0,0.00053972,120]
[331512607,1720445113914,-500.0,0.00053972,120]
[331512608,1720445114006,-500.0,0.00053972,120]
[331512609,1720445114099,-525.31,0.00053972,120]
[331512610,1720445114199,-682.0,0.00053972,120]
[331512611,1720445114298,-573.10645242,0.00053972,120]
[331512612,1720445114395,-1095.38,0.00053972,120]
[331512613,1720445114490,-1081.98,0.00053972,120]
[331512614,1720445114584,-500.0,0.00053972,120]
[331512615,1720445114680,-712.75,0.00053972,120]
[331512616,1720445114774,-766.48,0.00053972,120]
[331512617,1720445114866,-989.73,0.00053972,120]
[331512618,1720445114961,-887.36,0.00053972,120]
[331512619,1720445115058,-568.6,0.00053972,120]
[331512620,1720445115154,-665.12,0.00053972,120]
[331512621,1720445115250,-500.0,0.00053972,120]
[331512622,1720445115345,-196.43091921,0.00053972,120]
[331512623,1720445115440,-785.44,0.00053972,120]
[331512624,1720445115537,-2486.56,0.00053972,120]
[331512625,1720445115633,-500.0,0.00053972,120]
[331512626,1720445115729,-331.16996336,0.00053972,120]
[331512627,1720445116012,-500.0,0.00053972,120]
[331512628,1720445116108,-512.78121087,0.00053972,120]
[331512629,1720445116203,-891.8,0.00053972,120]
[331512630,1720445116297,-500.0,0.00053972,120]
[331512631,1720445116394,-201.37,0.00053972,120]
[331512632,1720445116492,-608.44,0.00053972,120]
[331512633,1720445116592,-705.57,0.00053972,120]
[331512634,1720445116695,-502.79,0.00053972,120]
[331512635,1720445116791,-500.0,0.00053972,120]
[331512636,1720445116884,-605.18,0.00053972,120]
[331512637,1720445116975,-500.0,0.00053972,120]
[331512638,1720445117065,-500.0,0.00053972,120]
[331512639,1720445117152,-500.0,0.00053972,120]
[331512640,1720445117242,-534.72,0.00053972,120]
[331512641,1720445117330,-712.81,0.00053972,120]
[331512642,1720445117422,-1760.36,0.00053972,120]
[331512643,1720445117513,-800.08,0.00053972,120]
[331512644,1720445117605,-500.0,0.00053972,120]
[331512645,1720445117696,-894.69,0.00053972,120]
[331512646,1720445117785,-723.54,0.00053972,120]
[331512647,1720445117873,-530.59,0.00053972,120]
[331512648,1720445117968,-839.95,0.00053972,120]
[331512649,1720445118060,-511.1,0.00053972,120]
[331512650,1720445118159,-760.52,0.00053972,120]
[331512651,1720445118259,-866.49,0.00053972,120]
[331512652,1720445118356,-500.0,0.00053972,120]
[331512653,1720445118449,-500.0,0.00053972,120]
[331512654,1720445118546,-500.0,0.00053972,120]
[331512655,1720445118644,-500.0,0.00053972,120]
[331512656,1720445118739,-893.31,0.00053972,120]
[331512657,1720445118834,-500.0,0.00053972,120]
[331512658,1720445118927,-174.79907411,0.00053972,120]
[331512659,1720445119022,-500.0,0.00053972,120]
[331512660,1720445119136,-1290.88,0.00053972,120]
[331512661,1720445119241,-585.61,0.00053972,120]
[331512662,1720445119340,-574.25,0.00053972,120]
[331512663,1720445119437,-500.0,0.00053972,120]
[331512664,1720445119530,-891.99,0.00053972,120]
[331512665,1720445119618,-518.21,0.00053972,120]
[331512666,1720445119711,-500.0,0.00053972,120]
[331512667,1720445119800,-973.06,0.00053972,120]
[331512668,1720445119890,-1101.05,0.00053972,120]
[331512669,1720445119986,-1143.52,0.00053972,120]
[331512670,1720445120077,-589.06,0.00053972,120]
[331512671,1720445120168,-729.17,0.00053972,120]
[331512672,1720445120259,-765.16,0.00053972,120]
[331512673,1720445120349,-538.46,0.00053972,120]
[331512674,1720445120441,-500.0,0.00053972,120]
[331512675,1720445120532,-577.54,0.00053972,120]
[331512676,1720445120622,-987.37,0.00053972,120]
[331512677,1720445120717,-500.0,0.00053972,120]
[331512678,1720445120810,-707.5,0.00053972,120]
[331512679,1720445120903,-943.37,0.00053972,120]
[331512680,1720445120997,-584.78,0.00053972,120]
[331512681,1720445121090,-558.55,0.00053972,120]
[331512682,1720445121181,-718.31,0.00053972,120]
[331512683,1720445121280,-511.83,0.00053972,120]
[331512684,1720445121378,-500.0,0.00053972,120]
[331512685,1720445121479,-175.97946868,0.00053972,120]
[331512686,1720445121573,-588.46,0.00053972,120]
[331512687,1720445121661,-725.12,0.00053972,120]
[331512688,1720445121754,-1169.96,0.00053972,120]
[331512689,1720445121843,-510.12,0.00053972,120]
[331512690,1720445121932,-691.49,0.00053972,120]
[331512691,1720445122025,-500.0,0.00053972,120]
[331512692,1720445122118,-500.0,0.00053972,120]
[331512693,1720445122214,-500.0,0.00053972,120]
[331512694,1720445122305,-500.0,0.00053972,120]
[331512695,1720445122390,-736.89,0.00053972,120]
[331512696,1720445122479,-500.0,0.00053972,120]
[331512697,1720445122572,-561.83,0.00053972,120]
[331512698,1720445122659,-500.0,0.00053972,120]
[331512699,1720445122746,-537.2322741,0.00053972,120]
[331512700,1720445122832,-500.0,0.00053972,120]
[331512701,1720445122917,-757.16,0.00053972,120]
[331512702,1720445123006,-519.91,0.00053972,120]
[331512703,1720445123099,-747.04,0.00053972,120]
[331512704,1720445123195,-613.38,0.00053972,30]
[331512705,1720445123292,-552.79,0.00053972,120]
[331512706,1720445123390,-500.0,0.00053972,120]
[331512707,1720445123480,-591.58,0.00053972,120]
[331512708,1720445123571,-1172.19,0.00053972,120]
[331512709,1720445123663,-500.0,0.00053972,120]
[331512710,1720445123752,-1249.26,0.00053972,120]
[331512711,1720445123839,-557.8,0.00053972,120]
[331512712,1720445123927,-534.69910157,0.00053972,120]
[331512713,1720445124019,-605.74,0.00053972,120]
[331512714,1720445124123,-800.07,0.00053972,120]
[331512715,1720445124230,-807.07,0.00053972,120]
[331512716,1720445124328,-967.69,0.00053972,120]
[331512717,1720445124422,-1110.78,0.00053972,120]
[331512718,1720445124518,-593.07,0.00053972,120]
[331512719,1720445124610,-666.97,0.00053972,120]
[331512720,1720445124707,-500.0,0.00053972,120]
[331512721,1720445124803,-663.11,0.00053972,120]
[331512722,1720445124899,-586.75,0.00053972,120]
[331512723,1720445124993,-500.0,0.00053972,120]
[331512724,1720445125090,-594.57,0.00053972,120]
[331512725,1720445125187,-500.0,0.00053972,120]
[331512726,1720445125285,-731.67,0.00053972,120]
[331512727,1720445125381,-500.0,0.00053972,120]
[331512728,1720445125478,-727.03,0.00053972,120]
[331512729,1720445125572,-500.0,0.00053972,120]
[331512730,1720445125665,-556.36,0.00053972,120]
[331512731,1720445125941,-678.58,0.00053972,120]
[331512732,1720445126036,-507.09,0.00053972,120]
[331512733,1720445126130,-828.76,0.00053972,120]
[331512734,1720445126224,-500.0,0.00053972,120]
[331512735,1720445126317,-564.32,0.00053972,120]
[331512736,1720445126410,-730.6,0.00053972,120]
[331512737,1720445126510,-500.0,0.00053972,120]
[331512738,1720445126608,-890.2,0.00053972,120]
[331512739,1720445126708,-795.04,0.00053972,120]
[331512740,1720445126805,-551.18,0.00053972,120]
[331512741,1720445126896,-500.0,0.00053972,120]
[331512742,1720445126988,-500.0,0.00053972,120]
[331512743,1720445127077,-788.58,0.00053972,120]
[331512744,1720445127167,-618.01,0.00053972,120]
[331512745,1720445127258,-500.0,0.00053972,120]
[331512746,1720445127348,-500.0,0.00053972,120]
[331512747,1720445127439,-720.18,0.00053972,120]
[331512748,1720445127530,-511.48,0.00053972,120]
[331512749,1720445127628,-500.0,0.00053972,120]
[331512750,1720445127725,-633.87,0.00053972,120]
[331512751,1720445127815,-885.43,0.00053972,120]
[331512752,1720445127904,-536.5,0.00053972,120]
[331512753,1720445127998,-739.48,0.00053972,120]
[331512754,1720445128097,-500.0,0.00053972,120]
[331512755,1720445128197,-556.22,0.00053972,120]
[331512756,1720445128298,-658.89,0.00053972,120]
[331512757,1720445128394,-500.0,0.00053972,120]
[331512758,1720445128486,-1110.08,0.00053972,120]
[331512759,1720445128579,-735.58,0.00053972,120]
[331512760,1720445128673,-508.6,0.00053972,120]
[331512761,1720445128765,-761.41,0.00053972,120]
[331512762,1720445128857,-757.98,0.00053972,120]
[331512763,1720445128953,-534.90597859,0.00053972,120]
[331512764,1720445129046,-500.0,0.00053972,120]
[331512765,1720445129140,-744.56,0.00053972,120]
[331512766,1720445129236,-820.08,0.00053972,120]
[331512767,1720445129333,-571.86,0.00053972,120]
[331512768,1720445129427,-976.88,0.00053972,120]
[331512769,1720445129518,-795.49,0.00053972,120]
[331512770,1720445129606,-633.46,0.00053972,120]
[331512771,1720445129697,-1023.57,0.00053972,120]
[331512772,1720445129788,-397.82541785,0.00053972,120]
[331512773,1720445129879,-732.16,0.00053972,120]
[331512774,1720445129975,-596.04,0.00053972,120]
[331512775,1720445130067,-584.19,0.00053972,120]
[331512776,1720445130156,-1250.0,0.00053972,120]
[331512777,1720445130248,-500.0,0.00053972,120]
[331512778,1720445130340,-1319.76,0.00053972,120]
[331512779,1720445130435,-500.0,0.00053972,120]
[331512780,1720445130527,-777.23,0.00053972,120]
[331512781,1720445130617,-786.03,0.00053972,120]
[331512782,1720445130714,-993.73,0.00053972,120]
[331512783,1720445130803,-857.25,0.00053972,120]
[331512784,1720445130893,-631.99,0.00053972,120]
[331512785,1720445130986,-526.26,0.00053972,120]
[331512786,1720445131076,-500.0,0.00053972,120]
[331512787,1720445131175,-834.16,0.00053972,120]
[331512788,1720445131276,-710.28,0.00053972,120]
[331512789,1720445131373,-500.0,0.00053972,120]
[331512790,1720445131466,-500.0,0.00053972,120]
[331512791,1720445131554,-500.0,0.00053972,120]
[331512792,1720445131644,-907.14,0.00053972,120]
[331512793,1720445131734,-548.92654757,0.00053972,120]
[331512794,1720445131822,-903.08,0.00053972,120]
[331512795,1720445131907,-1205.65,0.00053972,120]
[331512796,1720445131993,-575.42,0.00053972,120]
[331512797,1720445132079,-524.88,0.00053972,120]
[331512798,1720445132163,-560.0,0.00053972,120]
[331512799,1720445132246,-1266.13,0.00053972,120]
[331512800,1720445132331,-1038.93,0.00053972,120]
[331512801,1720445132414,-860.22,0.00053972,120]
[331512802,1720445132497,-617.44,0.00053972,120]
[331512803,1720445132603,-1023.2,0.00053972,120]
[331512804,1720445132700,-844.36,0.00053972,120]
[331512805,1720445132796,-981.65,0.00053972,120]
[331512806,1720445132883,-1228.92,0.00053972,120]
[331512807,1720445132977,-726.85,0.00053972,120]
[331512808,1720445133071,-537.18503062,0.00053972,120]
[331512809,1720445133172,-1221.82,0.00053972,120]
[331512810,1720445133271,-908.94,0.00053972,120]
[331512811,1720445133370,-597.71,0.00053972,120]
[331512812,1720445133461,-500.0,0.00053972,120]
[331512813,1720445133555,-694.82,0.00053972,120]
[331512814,1720445133651,-1246.01,0.00053972,120]
[331512815,1720445133748,-1155.33,0.00053972,120]
[331512816,1720445133843,-1101.3,0.00053972,120]
[331512817,1720445133939,-689.02,0.00053972,120]
[331512818,1720445134034,-500.0,0.00053972,120]
[331512819,1720445134128,-500.0,0.00053972,120]
[331512820,1720445134226,-889.1,0.00053972,120]
[331512821,1720445134322,-500.0,0.00053972,120]
[331512822,1720445134414,-656.56,0.00053972,120]
[331512823,1720445134514,-940.17,0.00053972,120]
[331512824,1720445134607,-1072.11,0.00053972,120]
[331512825,1720445134701,-500.0,0.00053972,120]
[331512826,1720445134796,-1299.84,0.00053972,120]
[331512827,1720445134889,-869.62,0.00053972,120]
[331512828,1720445134986,-500.0,0.00053972,120]
[331512829,1720445135078,-929.28,0.00053972,120]
[331512830,1720445135172,-905.16,0.00053972,120]
[331512831,1720445135266,-500.0,0.00053972,120]
[331512832,1720445135360,-500.84,0.00053972,120]
[331512833,1720445135455,-716.75,0.00053972,120]
[331512834,1720445135760,-753.1,0.00053972,120]
[331512835,1720445135856,-1023.46,0.00053972,120]
[331512836,1720445135954,-810.25,0.00053972,120]
[331512837,1720445136049,-943.0,0.00053972,120]
[331512838,1720445136150,-629.86,0.00053972,120]
[331512839,1720445136246,-1153.51,0.00053972,120]
[331512840,1720445136345,-500.0,0.00053972,120]
[331512841,1720445136446,-742.91,0.00053972,120]
[331512842,1720445136546,-683.08,0.00053972,120]
[331512843,1720445136645,-869.05,0.00053972,120]
[331512844,1720445136744,-1252.26,0.00053972,120]
[331512845,1720445136832,-728.18,0.00053972,120]
[331512846,1720445136922,-1516.47,0.00053972,120]
[331512847,1720445137015,-964.36,0.00053972,120]
[331512848,1720445137104,-1626.66,0.00053972,120]
[331512849,1720445137192,-413.72,0.00053972,120]
[331512850,1720445137282,-1061.16,0.00053972,120]
[331512851,1720445137377,-50000.0,0.00054,54]
[331512852,1720445137467,-300.0,0.00054,120]
[331512853,1720445137558,-10000.0,0.00054,120]
[331512854,1720445137653,-10000.0,0.00054,120]
[331512855,1720445137746,-10000.0,0.00054,120]
[331512856,1720445137838,-9200.0,0.00054,120]
[331512857,1720445137932,-1691.69,0.00054109,120]
[331512858,1720445138020,-833.33,0.00054109,120]
[331512859,1720445138116,-500.0,0.00054246,90]
[331512860,1720445138213,-2078.73,0.00054246,120]
[331512861,1720445138313,-754.88,0.00054246,120]
[331512862,1720445138414,-500.0,0.00054246,120]
[331512863,1720445138506,-1684.15,0.00054246,120]
[331512864,1720445138599,-515.9233879,0.00054246,120]
[331512865,1720445138694,-1733.81,0.00054246,120]
[331512866,1720445138787,-1653.08,0.00054246,120]
[331512867,1720445138881,-500.0,0.00054246,120]
[331512868,1720445138979,-684.17,0.00054246,120]
[331512869,1720445139076,-626.33,0.00054246,120]
[331512870,1720445139175,-1183.41,0.00054246,120]
[331512871,1720445139275,-697.42,0.00054246,120]
[331512872,1720445139375,-1492.66,0.00054246,120]
[331512873,1720445139472,-893.27,0.00054246,120]
[331512874,1720445139571,-687.27,0.00054246,120]
[331512875,1720445139660,-500.0,0.00054246,120]
[331512876,1720445139753,-153.479665,0.00054246,120]
[331512877,1720445139844,-578.06,0.00054246,120]
[331512878,1720445139937,-500.0,0.00054246,120]
[331512879,1720445140032,-929.58,0.00054246,120]
[331512880,1720445140128,-628.14,0.00054246,120]
[331512881,1720445140221,-575.43,0.00054246,120]
[331512882,1720445140314,-500.0,0.00054246,120]
[331512883,1720445140408,-606.58,0.00054246,120]
[331512884,1720445140502,-500.0,0.00054246,120]
[331512885,1720445140599,-500.0,0.00054246,120]
[331512886,1720445140698,-1428.1,0.00054246,120]
[331512887,1720445140797,-592.08,0.00054246,120]
[331512888,1720445140895,-599.01,0.00054246,120]
[331512889,1720445140998,-500.0,0.00054246,120]
[331512890,1720445141094,-500.0,0.00054246,120]
[331512891,1720445141190,-527.34,0.00054246,120]
[331512892,1720445141295,-500.0,0.00054246,120]
[331512893,1720445141401,-500.0,0.00054246,120]
[331512894,1720445141506,-2303.83,0.00054246,120]
[331512895,1720445141608,-1030.01,0.00054246,120]
[331512896,1720445141702,-521.02037298,0.00054246,120]
[331512897,1720445141797,-1129.3,0.00054246,120]
[331512898,1720445141892,-500.0,0.00054246,120]
[331512899,1720445141992,-500.0,0.00054246,120]
[331512900,1720445142085,-537.46,0.00054246,120]
[331512901,1720445142181,-779.78,0.00054246,120]
[331512902,1720445142272,-745.19,0.00054246,120]
[331512903,1720445142362,-731.02,0.00054246,120]
[331512904,1720445142456,-500.0,0.00054246,120]
[331512905,1720445142545,-656.72,0.00054246,120]
[331512906,1720445142630,-500.0,0.00054246,120]
[331512907,1720445142714,-1102.07,0.00054246,120]
[331512908,1720445142800,-500.0,0.00054246,120]
[331512909,1720445142883,-500.0,0.00054246,120]
[331512910,1720445142970,-500.0,0.00054246,120]
[331512911,1720445143056,-186.8035524,0.00054246,120]
[331512912,1720445143154,-804.05,0.00054246,120]
[331512913,1720445143250,-968.64,0.00054246,120]
[331512914,1720445143345,-1082.19,0.00054246,120]
[331512915,1720445143434,-1935.41,0.00054246,120]
[331512916,1720445143524,-1570.5,0.00054246,120]
[331512917,1720445143615,-5085.83,0.00054246,120]
[331512918,1720445143706,-771.26,0.00054246,120]
[331512919,1720445143799,-813.82,0.00054246,120]
[331512920,1720445143889,-1256.69,0.00054246,120]
[331512921,1720445143979,-530.51,0.00054246,120]
[331512922,1720445144068,-500.0,0.00054246,120]
[331512923,1720445144161,-500.0,0.00054246,120]
[331512924,1720445144254,-915.13,0.00054246,120]
[331512925,1720445144347,-511.24,0.00054246,120]
[331512926,1720445144439,-2062.26,0.00054246,120]
[331512927,1720445144530,-2547.29,0.00054246,120]
[331512928,1720445144621,-722.73,0.00054246,120]
[331512929,1720445144713,-1773.39,0.00054246,120]
[331512930,1720445144803,-962.79,0.00054246,120]
[331512931,1720445144893,-1826.77,0.00054246,120]
[331512932,1720445144983,-1768.04,0.00054246,120]
[331512933,1720445145076,-1447.56,0.00054246,120]
[331512934,1720445145167,-1801.6,0.00054246,120]
[331512935,1720445145259,-2861.76,0.00054246,120]
[331512936,1720445145351,-1122.87,0.00054246,120]
[331512937,1720445145442,-526.91,0.00054246,120]
[331512938,1720445145717,-686.39,0.00054246,120]
[331512939,1720445145809,-500.0,0.00054246,120]
[331512940,1720445145903,-1136.27,0.00054246,120]
[331512941,1720445146000,-3164.35,0.00054246,120]
[331512942,1720445146094,-505.54,0.00054246,120]
[331512943,1720445146188,-1162.49,0.00054246,120]
[331512944,1720445146282,-1906.95,0.00054246,120]
[331512945,1720445146385,-1298.4,0.00054246,120]
[331512946,1720445146487,-1181.68,0.00054246,120]
[331512947,1720445146589,-2349.1,0.00054246,120]
[331512948,1720445146688,-811.45,0.00054246,120]
[331512949,1720445146777,-759.35,0.00054246,120]
[331512950,1720445146865,-2038.75,0.00054246,120]
[331512951,1720445146955,-1664.25,0.00054246,120]
[331512952,1720445147048,-858.68,0.00054246,120]
[331512953,1720445147140,-1349.79,0.00054246,120]
[331512954,1720445147231,-502.55,0.00054246,120]
[331512955,1720445147323,-3020.56,0.00054246,120]
[331512956,1720445147415,-1293.82,0.00054246,120]
[331512957,1720445147503,-1674.53,0.00054246,120]
[331512958,1720445147592,-1078.52,0.00054246,120]
[331512959,1720445147681,-625.62,0.00054246,120]
[331512960,1720445147769,-834.62,0.00054246,120]
[331512961,1720445147859,-500.0,0.00054246,120]
[331512962,1720445147950,-1390.62,0.00054246,120]
[331512963,1720445148042,-1406.2,0.00054246,120]
[331512964,1720445148139,-669.87,0.00054246,120]
[331512965,1720445148238,-500.0,0.00054246,120]
[331512966,1720445148337,-728.82,0.00054246,120]
[331512967,1720445148430,-2399.28,0.00054246,120]
[331512968,1720445148523,-1434.06,0.00054246,120]
[331512969,1720445148617,-500.0,0.00054246,120]
[331512970,1720445148709,-510.34,0.00054246,120]
[331512971,1720445148813,-2007.19,0.00054246,120]
[331512972,1720445148908,-1253.66,0.00054246,120]
[331512973,1720445149001,-1628.65,0.00054246,120]
[331512974,1720445149094,-1435.39,0.00054246,120]
[331512975,1720445149192,-2683.83,0.00054246,120]
[331512976,1720445149292,-1226.3,0.00054246,120]
[331512977,1720445149392,-856.13,0.00054246,120]
[331512978,1720445149494,-1397.31,0.00054246,120]
[331512979,1720445149590,-602.51,0.00054246,120]
[331512980,1720445149687,-667.55,0.00054246,120]
[331512981,1720445149778,-500.0,0.00054246,120]
[331512982,1720445149870,-1620.69,0.00054246,120]
[331512983,1720445149966,-812.96,0.00054246,120]
[331512984,1720445150056,-2144.73,0.00054246,120]
[331512985,1720445150148,-3560.63,0.00054246,120]
[331512986,1720445150245,-1545.37,0.00054246,120]
[331512987,1720445150336,-505.85,0.00054246,120]
[331512988,1720445150428,-801.42,0.00054246,120]
[331512989,1720445150529,-3858.43,0.00054246,120]
[331512990,1720445150619,-4446.26,0.00054246,120]
[331512991,1720445150712,-737.86,0.00054246,120]
[331512992,1720445150804,-564.21,0.00054246,120]
[331512993,1720445150894,-988.15,0.00054246,120]
[331512994,1720445150984,-6909.46,0.00054246,120]
[331512995,1720445151079,-6124.77,0.00054246,120]
[331512996,1720445151174,-7434.29,0.00054246,120]
[331512997,1720445151268,-1564.94,0.00054246,120]